bitfinex-derivatives/quotes_ETHF0:USTF0_20240822
["timestamp","ask_amount","ask_price","bid_price","bid_amount"]
[1724338700547,0.38322,2608.6,2608.4,2.02573]
[1724338700751,0.38322,2608.6,2608.5,0.38323]
[1724338700951,0.38322,2608.6,2608.5,1.55]
[1724338701151,2.88256281,2608.6,2608.5,1.55]
[1724338701356,2.88256281,2608.6,2608.5,1.93323]
[1724338701357,0.38322,2608.6,2608.5,1.93323]
[1724338701557,0.38322,2608.6,2608.5,1.55]
[1724338702155,2.49934281,2608.6,2608.2,3.21049501]
[1724338702461,0.38325,2608.4,2608.3,0.38326]
[1724338702957,0.38324,2608.4,2608.3,0.38326]
[1724338703260,2.49979657,2608.5,2608.4,0.38324]
[1724338703261,2.88303657,2608.5,2608.4,0.38324]
[1724338703459,2.88303657,2608.5,2608.3,0.38325]
[1724338703658,0.38324,2608.4,2608.3,0.38325]
[1724338704060,2.88303657,2608.5,2608.3,0.38325]
[1724338704254,2.88303657,2608.5,2608.4,0.38324]
[1724338704452,2.49979657,2608.6,2608.5,0.38323]
[1724338704754,2.49979657,2608.7,2608.6,0.38321]
[1724338705261,2.49979657,2608.7,2608.6,3.67121]
[1724338706367,2.49979657,2608.8,2608.7,0.3832]
[1724338706764,2.49979657,2608.9,2608.7,4.2168]
[1724338706957,2.49979657,2609.0,2608.9,0.38317]
[1724338708267,0.00414284,2609.1,2609.0,0.38316]
[1724338708569,2.50429491,2609.1,2609.0,0.38316]
[1724338708862,2.50429491,2609.1,2608.8,3.2078]
[1724338708863,0.00414284,2609.1,2608.8,3.2078]
[1724338709062,0.38318,2608.9,2608.6,2.0736]
[1724338709260,2.49958049,2608.8,2608.7,0.3832]
[1724338709455,2.49958049,2608.8,2608.6,1.6904]
[1724338709666,2.49958049,2608.7,2608.6,1.6904]
[1724338709858,2.49958049,2608.7,2608.3,0.38325]
[1724338710059,0.38325,2608.4,2608.3,1.6904]
[1724338710863,2.56674,2608.6,2608.3,1.6904]
[1724338710864,2.49958049,2608.6,2608.3,1.6904]
[1724338711070,2.49958049,2608.6,2608.5,0.38323]
[1724338711367,2.49958049,2608.7,2608.6,0.38321]
[1724338711764,2.49958049,2608.7,2608.6,3.59101]
[1724338711960,2.49958049,2608.8,2608.6,7.42461]
[1724338712175,2.49958049,2608.8,2608.7,2.0506]
[1724338712566,0.38316,2609.0,2608.8,0.38318]
[1724338712762,0.38317,2608.9,2608.8,1.5363]
[1724338713871,4.65247959,2609.1,2608.6,3.2078]
[1724338714170,2.50025397,2608.7,2608.6,3.59101]
[1724338714664,2.50025397,2608.7,2608.6,7.42461]
[1724338715361,2.50140066,2608.8,2608.6,7.0414]
[1724338715664,2.50140066,2608.7,2608.6,3.59101]
[1724338716065,2.50140066,2608.7,2608.6,3.2078]
[1724338716367,2.50144575,2608.7,2608.6,3.2078]
[1724338716570,2.50144575,2608.7,2608.6,3.59101]
[1724338716768,4.65247959,2609.1,2608.6,3.59101]
[1724338716769,2.50144575,2608.8,2608.7,0.3832]
[1724338716970,3.39562959,2609.1,2608.8,0.38318]
[1724338716971,0.38316,2609.0,2608.8,0.38318]
[1724338717160,0.38317,2608.9,2608.6,3.2078]
[1724338717371,2.50157332,2608.7,2608.6,3.2078]
[1724338717562,2.50157332,2608.7,2608.6,3.59101]
[1724338717868,2.50157332,2608.8,2608.6,3.591]
[1724338718069,2.50157332,2608.8,2608.7,0.3832]
[1724338719663,2.88475332,2608.8,2608.7,0.3832]
[1724338719965,2.88475332,2608.8,2608.6,3.2078]
[1724338719966,3.96624675,2609.0,2608.6,3.2078]
[1724338720170,0.3832,2608.7,2608.6,3.2078]
[1724338720367,0.95798,2608.8,2608.3,3.60745]
[1724338720672,2.88635016,2608.4,2608.3,1.5568]
[1724338720860,1.34141,2608.3,2608.2,3.21049501]
[1724338721169,0.38326,2608.3,2608.2,0.00269501]
[1724338721866,6.71930041,2608.3,2608.2,3.21049501]
[1724338722173,4.21686,2608.3,2608.2,3.21049501]
[1724338722360,2.50248794,2608.3,2608.2,3.21049501]
[1724338722565,2.50248794,2608.3,2608.2,3.59376501]
[1724338722966,0.38324,2608.4,2608.2,0.38596501]
[1724338723165,5.08077675,2608.5,2608.2,0.38596501]
[1724338723368,0.38324,2608.5,2608.2,0.38595501]
[1724338723670,2.50231019,2608.3,2608.2,0.38595501]
[1724338724065,2.50231019,2608.3,2608.2,3.59375501]
[1724338724269,2.50231019,2608.3,2608.2,7.42735501]
[1724338724472,2.50231019,2608.4,2608.3,0.38326]
[1724338725271,2.50231019,2608.4,2608.2,3.59375501]
[1724338725578,2.50231019,2608.4,2608.3,0.38326]
[1724338727172,2.88555019,2608.4,2608.2,3.59376501]
[1724338727468,2.50231019,2608.3,2608.2,3.21049501]
[1724338727674,0.38326,2608.3,2608.2,0.00269501]
[1724338727873,4.21686,2608.3,2608.2,0.00269501]
[1724338728281,5.77756,2608.3,2608.2,0.00269501]
[1724338728979,4.06220025,2608.3,2608.2,0.00269501]
[1724338729185,4.44546025,2608.3,2608.2,0.00269501]
[1724338729371,4.06220025,2608.3,2608.2,0.00269501]
[1724338729574,4.44546025,2608.3,2608.2,0.00269501]
[1724338729781,5.77756,2608.3,2608.2,0.00269501]
[1724338729977,8.27782191,2608.3,2608.2,0.00269501]
[1724338730179,5.77756,2608.3,2608.2,0.00269501]
[1724338730880,6.73571,2608.3,2608.2,0.00269501]
[1724338731880,5.77756,2608.3,2608.2,0.00269501]
[1724338732388,1.94396,2608.3,2608.2,0.00269501]
[1724338732587,4.44330283,2608.3,2608.2,0.00269501]
[1724338733283,2.88260283,2608.3,2608.2,0.00269501]
[1724338733475,2.49934283,2608.3,2608.2,0.38596501]
[1724338734273,6.33294283,2608.3,2608.2,0.38596501]
[1724338734479,2.49934283,2608.3,2608.2,0.38596501]
[1724338735181,6.71620283,2608.3,2608.2,0.00269501]
[1724338735382,4.21686,2608.3,2608.2,0.00269501]
[1724338738383,0.38329,2608.1,2608.0,0.00575164]
[1724338738584,5.61475,2608.1,2608.0,0.00575164]
[1724338738883,14.44915,2608.1,2608.0,0.00575164]
[1724338739081,3.315,2607.4,2606.4,4.20803461]
[1724338739284,2.49645009,2606.9,2606.7,0.38349]
[1724338739485,0.00414937,2606.9,2606.7,0.38702379]
[1724338740289,0.00414937,2606.9,2606.7,3.59482379]
[1724338740489,0.00414937,2606.9,2606.8,0.38348]
[1724338740692,0.00414937,2606.9,2606.8,1.95808]
[1724338740887,0.00414937,2606.9,2606.8,5.79408]
[1724338743884,0.00575164,2607.1,2607.0,0.38345]
[1724338744094,0.00575164,2607.1,2607.0,3.59125]
[1724338744689,0.00575164,2607.1,2607.0,9.02265]
[1724338744883,0.00928493,2607.1,2607.0,9.02265]
[1724338746386,0.00928493,2607.1,2607.0,9.98128]
[1724338746588,1.5973,2607.8,2607.4,0.38339]
[1724338746886,1.5973,2607.8,2607.0,9.59783]
[1724338746887,0.38341,2607.3,2607.1,0.38343]
[1724338747092,0.38341,2607.3,2607.0,4.8032]
[1724338747288,0.3834,2607.4,2607.2,0.38341]
[1724338747484,0.3834,2607.3,2607.2,0.38341]
[1724338747694,0.00286665,2607.3,2607.2,0.38341]
[1724338748688,0.00286665,2607.3,2607.0,4.8032]
[1724338748893,0.38343,2607.1,2607.0,3.2078]
[1724338749088,0.38343,2607.2,2607.1,0.38343]
[1724338749282,0.38627665,2607.3,2607.2,0.38342]
[1724338749486,0.00286665,2607.3,2607.2,0.38342]
[1724338749685,0.38343,2607.2,2607.0,3.59124]
[1724338749989,0.38343,2607.2,2607.1,0.38343]
[1724338750185,0.38342,2607.2,2607.0,3.59124]
[1724338750384,0.00286665,2607.3,2607.1,0.38343]
[1724338750385,0.38627665,2607.3,2607.1,0.38343]
[1724338750585,0.00286665,2607.3,2607.2,0.38342]
[1724338751393,0.00286665,2607.3,2607.2,4.21862]
[1724338751700,0.38333,2607.9,2607.2,9.79376]
[1724338751995,0.38333,2607.9,2607.7,0.38334]
[1724338752193,3.66081,2608.0,2607.8,1.6343]
[1724338752401,0.38332,2607.9,2607.8,1.6343]
[1724338752896,4.22102704,2607.9,2607.8,1.6343]
[1724338753091,0.38662704,2607.9,2607.8,1.6343]
[1724338753491,0.38333,2607.8,2607.5,0.38337]
[1724338753688,0.96160704,2607.9,2607.4,1.6343]
[1724338753885,0.00330704,2607.9,2607.4,1.6343]
[1724338754086,0.38335,2607.7,2607.4,2.01768]
[1724338754690,0.38334,2607.8,2607.4,2.01768]
[1724338755101,0.38335,2607.7,2607.4,2.01768]
[1724338755488,0.38334,2607.8,2607.5,0.38337]
[1724338756099,0.00330704,2607.9,2607.6,0.38336]
[1724338756400,0.38663704,2607.9,2607.6,0.38336]
[1724338757308,0.00330704,2607.9,2607.8,0.38333]
[1724338757597,0.00330704,2607.9,2607.5,3.2078]
[1724338757899,0.38663704,2607.9,2607.6,0.38336]
[1724338758102,0.38334,2607.8,2607.5,3.59117]
[1724338758799,0.38336,2607.6,2607.5,3.2078]
[1724338758992,0.38336,2607.7,2607.5,3.2078]
[1724338759393,1.6796,2607.8,2607.5,3.2078]
[1724338759394,0.38336,2607.6,2607.5,3.2078]
[1724338759590,1.97036,2607.6,2607.5,3.2078]
[1724338760699,1.97036,2607.6,2606.7,0.00353379]
[1724338760700,0.9587,2606.8,2606.7,0.00353379]
[1724338760896,0.9587,2606.8,2606.2,45.21756]
[1724338760897,0.95874,2606.7,2606.2,45.21756]
[1724338761200,0.95874,2606.7,2606.3,1.6682]
[1724338761201,3.2078,2606.5,2606.3,1.6682]
[1724338761396,3.2078,2606.5,2606.4,0.38354]
[1724338761998,3.2078,2606.5,2606.4,0.00473885]
[1724338764101,3.59132,2606.5,2606.4,0.00473885]
[1724338765300,4.55013,2606.5,2606.4,0.00473885]
[1724338765500,1.34233,2606.5,2606.4,0.00473885]
[1724338766497,4.55013,2606.5,2606.4,0.00473885]
[1724338767405,3.59132,2606.5,2606.4,0.00473885]
[1724338770911,7.86513,2606.5,2606.4,0.00473885]
[1724338771205,11.70193,2606.5,2606.4,0.00473885]
[1724338773406,16.75193,2606.5,2606.4,0.00473885]
[1724338773611,1.34244,2606.3,2606.2,45.22331164]
[1724338774112,5.17924,2606.3,2606.2,45.22331164]
[1724338774612,5.17924,2606.3,2606.2,45.22600093]
[1724338776018,6.92404,2606.3,2606.2,45.22600093]
[1724338779305,5.24924,2606.3,2606.2,45.22600093]
[1724338779713,4.22035,2606.3,2606.2,45.22600093]
[1724338780608,0.38355,2606.3,2606.2,45.22600093]
[1724338780914,4.22035,2606.3,2606.2,45.22600093]
[1724338781516,4.29035,2606.3,2606.2,45.22600093]
[1724338781720,12.82273,2606.3,2606.2,28.37486093]
[1724338782011,14.43803,2606.3,2606.2,17.64153504]
[1724338784509,14.43803,2606.3,2606.2,1.67923504]
[1724338784811,16.91796682,2606.3,2606.2,1.67923504]
[1724338785313,0.38367,2605.5,2605.4,1.6558]
[1724338785515,6.90647,2605.5,2605.4,1.6558]
[1724338785720,3.69867,2605.5,2605.4,1.6558]
[1724338786216,3.7020348,2605.5,2605.4,1.66009085]
[1724338786413,3.3183648,2605.5,2605.4,1.66009085]
[1724338787323,3.7020348,2605.5,2605.4,1.66009085]
[1724338787912,3.3183648,2605.5,2605.4,1.66009085]
[1724338789021,6.5261648,2605.5,2605.4,1.66009085]
[1724338789415,11.5261648,2605.5,2603.5,4.16771]
[1724338789606,11.5261648,2605.5,2603.0,0.99921669]
[1724338789607,6.5228,2604.4,2603.8,6.4962]
[1724338789811,3.2078,2604.4,2603.8,6.4962]
[1724338790312,0.38382,2604.5,2603.9,0.38391]
[1724338790518,0.38957164,2604.5,2604.0,0.38389]
[1724338790718,0.38957164,2604.5,2603.9,0.00907465]
[1724338790719,0.00575164,2604.5,2603.9,0.00907465]
[1724338790907,3.59164,2604.4,2603.9,0.00907465]
[1724338791214,3.2078,2604.4,2604.0,0.38388]
[1724338791717,0.38385,2604.3,2603.9,0.00907465]
[1724338792116,3.59164,2604.4,2603.9,0.00907465]
[1724338792317,3.59164,2604.4,2603.9,0.39297465]
[1724338792617,3.2078,2604.4,2603.9,0.00907465]
[1724338793024,3.2078,2604.4,2604.1,0.38387]
[1724338793424,3.2078,2604.4,2604.2,0.38385]
[1724338793714,3.2078,2604.4,2604.3,3.2476]
[1724338794124,3.2078,2604.4,2604.3,3.84]
[1724338794417,3.2078,2604.4,2604.0,3.2108]
[1724338794623,3.2078,2604.4,2604.0,3.59469]
[1724338794823,0.38389,2604.0,2603.9,0.00907465]
[1724338795423,1.34362,2604.0,2603.9,0.00907465]
[1724338796121,5.18362,2604.0,2603.9,0.00907465]
[1724338797023,0.38389,2604.0,2603.9,0.00907465]
[1724338798520,1.34362,2604.0,2603.9,0.00907465]
[1724338799419,5.18362,2604.0,2603.9,0.00907465]
[1724338799943,11.19335,2604.0,2603.9,0.00907465]
[1724338800123,12.74805,2604.0,2603.9,4.65e-06]
[1724338800624,4.27389,2604.0,2603.9,4.65e-06]
[1724338800822,0.38389,2604.0,2603.9,4.65e-06]
[1724338801030,12.80335,2604.0,2603.9,0.00409164]
[1724338801321,11.84362,2604.0,2603.9,0.00409164]
[1724338801723,12.80335,2604.0,2603.9,0.00409164]
[1724338802128,0.38396,2603.5,2603.4,3.1777]
[1724338802326,4.23176,2603.5,2603.4,3.1777]
[1724338803224,3.21058941,2603.5,2603.4,3.18108181]
[1724338805428,0.66308941,2603.5,2603.4,7.02188181]
[1724338805628,0.00278941,2603.5,2603.4,7.40586181]
[1724338806924,6.888,2604.2,2603.7,0.38393]
[1724338807125,7.68065,2604.3,2603.7,3.59173]
[1724338807319,0.38386,2604.2,2603.7,3.2078]
[1724338807529,0.38387,2604.2,2603.7,3.2078]
[1724338807823,7.68065,2604.3,2603.7,3.59173]
[1724338808031,0.38386,2604.2,2603.7,3.2078]
[1724338808233,0.38388,2604.1,2603.7,3.2078]
[1724338808533,7.30033575,2604.3,2603.7,3.2078]
[1724338808736,0.38388,2604.1,2603.7,3.2078]
[1724338809032,4.09253575,2604.3,2603.8,0.38392]
[1724338809330,0.00575164,2604.5,2604.0,3.2078]
[1724338809626,0.00575164,2604.5,2604.4,3.2078]
[1724338809830,0.00575164,2604.5,2604.4,3.8392]
[1724338810030,0.00575164,2604.5,2604.1,41.9486]
[1724338810226,0.00905245,2604.5,2604.1,41.9486]
[1724338810932,0.39287245,2604.5,2604.1,41.9486]
[1724338811131,0.38384,2604.4,2604.1,1.5486]
[1724338811324,0.00905245,2604.5,2604.1,1.5486]
[1724338811524,0.38386,2604.2,2604.1,1.5486]
[1724338811728,3.2078,2604.3,2604.1,1.5486]
[1724338811935,1.08,2604.3,2604.1,1.5486]
[1724338812125,0.00905245,2604.5,2604.1,1.5486]
[1724338812434,1.34905245,2604.5,2604.1,1.5486]
[1724338812635,1.73287245,2604.5,2604.2,1.5751]
[1724338812930,1.34905245,2604.5,2604.2,1.5751]
[1724338813136,0.00905245,2604.5,2604.3,1.6508]
[1724338820035,0.00905245,2604.5,2603.9,3.2078]
[1724338820036,0.95973,2604.0,2603.9,3.2078]
[1724338820336,0.95973,2604.0,2602.6,1.38321669]
[1724338820337,0.96005,2603.2,2601.8,0.32534176]
[1724338820538,3.59186,2602.9,2601.8,3.2078]
[1724338820742,3.2078,2602.5,2601.8,3.2078]
[1724338821041,3.2078,2602.2,2601.7,1.677]
[1724338821238,3.21743196,2602.2,2601.7,1.68565484]
[1724338821434,3.21743196,2602.2,2601.8,40.4]
[1724338822630,3.21743196,2602.2,2601.7,1.68565484]
[1724338822631,3.2078,2601.9,2601.7,1.68565484]
[1724338823131,3.2078,2601.9,2601.8,44.2432]
[1724338823334,3.2078,2601.9,2601.8,3.8432]
[1724338823644,0.00963196,2602.2,2601.9,0.38419]
[1724338823941,0.00963196,2602.2,2602.1,0.38417]
[1724338824127,3.2078,2602.5,2602.2,0.38415]
[1724338824336,3.2078,2602.5,2602.2,3.8424]
[1724338824534,3.2078,2602.5,2602.3,3.8424]
[1724338824741,3.2078,2602.5,2602.2,4.22656]
[1724338824937,3.2078,2602.5,2602.2,0.38416]
[1724338825130,3.21270506,2602.5,2602.3,3.8424]
[1724338825334,3.21270506,2602.5,2602.2,4.22655]
[1724338825534,0.00576269,2602.6,2602.3,3.2078]
[1724338825732,3.2078,2603.5,2602.4,1.5775]
[1724338825928,3.2078,2603.2,2602.5,0.3841]
[1724338826142,3.2078,2603.2,2602.4,1.96162]
[1724338826332,3.2078,2603.2,2602.5,0.38411]
[1724338826528,3.21126643,2603.2,2602.4,1.5775]
[1724338826731,3.59527643,2603.2,2602.5,1.5982]
[1724338827139,0.38978269,2603.1,2602.5,1.5982]
[1724338827745,3.2078,2602.9,2602.5,1.5982]
[1724338827935,3.2078,2602.6,2602.4,1.5775]
[1724338828533,3.2078,2602.6,2601.8,5.20691]
[1724338828734,3.2078,2602.6,2601.9,2.0804]
[1724338828941,3.2078,2602.6,2601.9,3.3446]
[1724338829143,3.2078,2602.6,2602.2,0.38415]
[1724338829443,3.2078,2602.9,2602.5,0.3841]
[1724338829740,3.2078,2602.9,2602.4,3.59192]
[1724338829952,3.2078,2602.9,2602.5,1.6149]
[1724338831040,3.2078,2602.6,2602.1,3.2078]
[1724338832542,3.2078,2602.6,2601.9,3.3446]
[1724338832735,3.5919,2602.6,2601.9,3.3446]
[1724338832943,3.5919,2602.6,2601.9,6.5524]
[1724338834048,3.5919,2602.6,2601.9,6.5524]
[1724338834553,3.2078,2602.6,2601.9,6.9366]
[1724338834735,3.2078,2602.6,2601.9,6.5524]
[1724338834945,3.5919,2602.6,2601.9,6.5524]
[1724338835151,3.2078,2602.6,2601.9,6.93659]
[1724338835447,3.2078,2602.9,2602.5,0.3841]
[1724338835750,3.2078,2602.9,2602.3,0.38413]
[1724338836053,3.2078,2602.9,2601.9,6.5524]
[1724338836345,3.2078,2602.9,2602.2,0.38415]
[1724338836550,3.2078,2602.9,2601.9,6.5524]
[1724338836754,3.2078,2602.9,2602.4,0.38412]
[1724338836952,3.2078,2602.9,2602.5,1.6001]
[1724338837462,3.2078,2602.9,2602.6,1.6974]
[1724338839744,0.38419,2602.0,2601.7,0.00865484]
[1724338839956,3.2078,2601.8,2601.7,0.00865484]
[1724338840440,3.2078,2601.8,2601.7,3.85185484]
[1724338840941,0.38416,2602.2,2601.7,3.85185484]
[1724338841147,0.38416,2602.2,2601.7,0.00865484]
[1724338841345,0.38421,2601.9,2601.7,0.00865484]
[1724338841651,3.2078,2602.0,2601.7,0.00865484]
[1724338841850,0.38418,2602.1,2601.7,0.00865484]
[1724338842053,0.38416,2602.2,2601.7,0.00865484]
[1724338842258,0.61,2602.2,2601.7,0.00865484]
[1724338842455,0.99416,2602.2,2601.7,0.00865484]
[1724338842647,3.59195,2602.3,2601.7,0.00865484]
[1724338842953,0.38416,2602.2,2601.7,0.00865484]
[1724338843544,0.38417,2602.1,2601.7,0.00865484]
[1724338843840,3.2078,2602.0,2601.7,0.00865484]
[1724338844044,3.59199,2602.0,2601.7,0.00865484]
[1724338844244,3.2078,2602.0,2601.7,0.00865484]
[1724338844747,0.38421,2601.9,2601.7,0.00865484]
[1724338845452,0.38421,2601.8,2601.7,0.00865484]
[1724338846252,3.2078,2602.0,2601.7,0.00865484]
[1724338846253,0.38421,2601.9,2601.7,0.00865484]
[1724338846757,3.2078,2602.0,2601.7,0.00865484]
[1724338846960,3.592,2602.0,2601.7,0.00865484]
[1724338847150,0.3842,2601.9,2601.7,0.00865484]
[1724338847752,3.59199,2602.0,2601.7,0.00865484]
[1724338848148,3.2078,2602.0,2601.7,0.00865484]
[1724338848352,5.68347822,2602.6,2601.7,8.21645484]
[1724338848549,2.47567822,2602.6,2602.3,3.2078]
[1724338849047,0.38408,2602.7,2602.3,3.2078]
[1724338849357,0.38408,2602.8,2602.3,3.2078]
[1724338849861,3.59186,2602.9,2602.3,3.2078]
[1724338850053,0.38407,2602.8,2602.3,3.2078]
[1724338850449,3.59186,2602.9,2602.3,3.2078]
[1724338850650,3.2078,2602.9,2602.3,3.2078]
[1724338850959,0.38407,2602.8,2602.3,3.2078]
[1724338851163,3.59186,2602.9,2602.3,3.2078]
[1724338851855,3.2078,2602.9,2602.3,3.2078]
[1724338852164,3.59185,2602.9,2602.3,3.2078]
[1724338852555,3.2078,2602.6,2601.9,3.59199]
[1724338852755,3.2078,2602.6,2602.0,3.59198]
[1724338852961,3.2078,2602.6,2602.1,0.38417]
[1724338853257,3.259,2602.8,2602.2,0.38415]
[1724338854459,3.2078,2602.9,2602.3,3.2078]
[1724338854661,3.59185,2602.9,2602.1,0.38416]
[1724338854869,3.59185,2602.9,2602.1,0.38417]
[1724338855256,3.59185,2602.9,2602.2,0.38415]
[1724338855562,3.59185,2602.9,2602.1,0.38416]
[1724338855768,0.38409,2602.7,2602.0,3.2078]
[1724338855957,3.2078,2602.6,2601.8,3.4768]
[1724338856265,3.5919,2602.6,2601.8,3.4768]
[1724338856661,3.5919,2602.6,2601.9,0.3842]
[1724338856864,3.5919,2602.6,2601.8,3.4768]
[1724338857465,3.2078,2602.6,2601.9,0.3842]
[1724338857663,3.2078,2602.6,2602.0,0.38418]
[1724338858174,3.2078,2602.9,2602.2,3.2078]
[1724338858359,3.2078,2602.9,2602.3,2.00093]
[1724338858666,3.2078,2602.9,2602.6,0.38409]
[1724338858861,3.2078,2602.9,2602.7,1.6347]
[1724338859059,3.2078,2602.9,2602.7,3.8424]
[1724338860572,0.00576269,2603.1,2602.7,3.8424]
[1724338860765,0.00576269,2603.1,2602.8,0.38406]
[1724338860966,0.00576269,2603.1,2602.9,1.6739]
[1724338863165,0.00576269,2603.1,2602.5,0.3841]
[1724338863368,0.00576269,2603.1,2602.7,0.38407]
[1724338863677,0.00576269,2603.1,2602.8,0.38406]
[1724338863878,0.00576269,2603.1,2602.8,3.2078]
[1724338864176,4.089,2603.9,2603.0,4.429]
[1724338864475,3.2078,2604.2,2603.0,4.429]
[1724338864476,5.68347822,2604.2,2603.6,3.2078]
[1724338864686,3.2078,2604.2,2603.7,3.262]
[1724338865180,3.21278773,2604.2,2603.7,3.26694895]
[1724338865470,3.21278773,2604.2,2603.8,0.38391]
[1724338865471,3.21855042,2604.2,2603.8,0.38391]
[1724338865671,0.01075042,2604.2,2603.9,3.2078]
[1724338865873,0.01075042,2604.2,2604.0,0.38388]
[1724338866061,0.01075042,2604.2,2604.0,4.22388]
[1724338866267,0.01075042,2604.2,2604.1,0.38388]
[1724338866470,0.01075042,2604.2,2604.1,4.22388]
[1724338866665,3.2078,2604.9,2604.1,13.269]
[1724338866867,3.2078,2604.9,2604.3,3.2078]
[1724338867068,3.2078,2604.9,2604.4,0.38382]
[1724338867679,3.21693348,2604.9,2604.2,1.5394]
[1724338867882,3.60069348,2604.9,2604.2,1.5394]
[1724338868767,3.21693348,2604.9,2604.2,1.5394]
[1724338868984,3.60070348,2604.9,2604.2,1.5394]
[1724338869473,3.60070348,2604.9,2604.2,1.92326]
[1724338869677,3.21693348,2604.9,2604.2,1.5394]
[1724338869866,3.21693348,2604.9,2604.5,0.38381]
[1724338870271,3.21693348,2604.9,2604.4,0.38382]
[1724338870477,3.21693348,2604.9,2604.5,0.38381]
[1724338870674,3.21693348,2604.9,2604.6,0.3838]
[1724338871267,0.00913348,2604.9,2604.6,0.3838]
[1724338871473,0.00913348,2604.9,2604.7,0.38379]
[1724338872178,0.00913348,2604.9,2604.8,3.8392]
[1724338873070,0.00913348,2604.9,2604.8,4.22297]
[1724338873273,0.00913348,2604.9,2604.8,3.8392]
[1724338875370,0.00913348,2604.9,2604.6,0.3838]
[1724338875566,0.00913348,2604.9,2604.5,4.7813]
[1724338875782,0.00913348,2604.9,2604.5,1.5735]
[1724338876078,0.39289348,2604.9,2604.5,1.5735]
[1724338876277,0.39289348,2604.9,2604.1,7.6368]
[1724338876278,3.2078,2604.7,2604.0,3.2078]
[1724338876577,0.38388,2604.1,2603.8,3.1629]
[1724338876773,0.38386,2604.3,2603.8,3.1629]
[1724338876979,0.38386,2604.2,2603.8,3.1629]
[1724338877181,0.38385,2604.3,2603.8,6.3707]
[1724338877679,3.59164,2604.4,2603.8,6.75462]
[1724338878265,0.38384,2604.4,2603.8,6.75462]
[1724338878482,4.47281,2604.6,2604.0,0.38389]
[1724338878683,4.47281,2604.6,2604.0,0.38388]
[1724338878979,4.089,2604.6,2604.1,0.38387]
[1724338879281,4.47281,2604.6,2604.0,0.38388]
[1724338879480,4.089,2604.6,2604.1,0.38387]
[1724338879671,4.089,2604.6,2603.8,6.3707]
[1724338880076,4.089,2604.6,2604.1,0.38387]
[1724338880268,4.089,2604.6,2604.2,0.38385]
[1724338880969,4.089,2604.6,2604.1,3.2078]
[1724338881175,3.2078,2604.7,2604.3,0.38384]
[1724338881778,3.2078,2604.7,2604.4,0.38383]
[1724338882082,3.2078,2604.7,2604.3,0.38384]
[1724338882583,3.2078,2604.7,2604.4,0.38383]
[1724338882884,3.2078,2604.7,2604.1,3.2078]
[1724338883186,3.2078,2604.7,2604.5,0.3838]
[1724338883376,3.2078,2604.7,2604.6,0.3838]
[1724338883575,0.00913348,2604.9,2604.8,0.38377]
[1724338883775,0.00913348,2604.9,2604.8,3.59157]
[1724338883975,0.00913348,2604.9,2604.8,7.43077]
[1724338884382,0.00913348,2604.9,2604.8,3.8392]
[1724338886786,0.00913348,2604.9,2604.8,4.22297]
[1724338887578,0.00913348,2604.9,2604.8,3.8392]
[1724338887982,0.00913348,2604.9,2604.8,7.047]
[1724338889785,0.00913348,2604.9,2604.8,7.43077]
[1724338890387,0.00913348,2604.9,2604.8,7.047]
[1724338890584,0.00913348,2604.9,2604.8,3.2078]
[1724338893186,0.00913348,2604.9,2604.8,3.59157]
[1724338893385,0.00913348,2604.9,2604.8,7.43077]
[1724338894590,0.00913348,2604.9,2604.8,11.85977]
[1724338894787,0.00913348,2604.9,2604.8,7.43077]
[1724338902697,3.2078,2605.6,2605.3,0.3837]
[1724338902893,3.2078,2605.6,2605.2,3.5915]
[1724338903294,0.38365,2605.7,2605.3,0.3837]
[1724338903496,4.47263,2605.8,2605.3,0.3837]
[1724338903800,4.47693879,2605.8,2605.3,0.38946269]
[1724338904200,4.47692879,2605.8,2605.3,0.38946269]
[1724338904393,4.09330879,2605.8,2605.3,0.00576269]
[1724338904590,4.09330879,2605.8,2605.3,0.38945269]
[1724338905405,4.09330879,2605.8,2605.4,0.38368]
[1724338905708,4.09330879,2605.8,2605.3,0.38945269]
[1724338905890,4.09330879,2605.8,2605.3,0.00576269]
[1724338906091,4.09330879,2605.8,2605.6,0.38364]
[1724338906294,4.09330879,2605.8,2605.6,0.38702544]
[1724338906801,4.09330879,2605.8,2605.7,3.2078]
[1724338907299,0.00430879,2605.8,2605.7,3.59144]
[1724338908696,0.00430879,2605.8,2605.7,6.90844]
[1724338912310,0.00430879,2605.8,2605.7,8.44334]
[1724338912807,0.00430879,2605.8,2605.7,12.28094]
[1724338916308,2.49410092,2606.2,2606.0,0.38359]
[1724338916500,2.49410092,2606.2,2606.0,3.317]
[1724338917197,2.49908337,2606.2,2606.0,3.317]
[1724338919402,2.49908337,2606.2,2605.9,0.38361]
[1724338920406,2.49908337,2606.2,2605.6,0.00338544]
[1724338920706,3.59144,2605.7,2605.6,0.00338544]
[1724338920909,3.2078,2605.7,2605.6,0.00338544]
[1724338921109,7.0454,2605.7,2605.6,0.00338544]
[1724338921295,11.81014092,2605.7,2605.6,0.00338544]
[1724338921602,0.38366,2605.6,2605.0,3.2078]
[1724338921802,2.490945,2605.4,2605.0,3.2078]
[1724338922205,6.329345,2605.4,2605.0,3.2078]
[1724338922407,6.329345,2605.4,2605.3,0.00887907]
[1724338922801,2.490945,2605.6,2605.4,0.38368]
[1724338923000,4.377945,2605.7,2605.5,0.38367]
[1724338923400,1.887,2605.7,2605.4,0.38368]
[1724338923901,1.887,2605.7,2605.3,2.24716907]
[1724338924299,1.887,2605.7,2605.3,1.86347907]
[1724338924599,5.0948,2605.7,2605.3,0.00887907]
[1724338924807,1.8371,2605.9,2605.6,3.317]
[1724338925010,1.8511,2606.1,2605.8,3.317]
[1724338925209,1.8511,2606.1,2605.8,6.5248]
[1724338925603,0.00498245,2606.2,2606.0,0.38359]
[1724338925805,0.00498245,2606.2,2605.9,0.3836]
[1724338925806,2.49763427,2606.2,2605.9,0.3836]
[1724338926409,2.49265182,2606.1,2605.9,0.3836]
[1724338926612,2.49265182,2606.0,2605.8,3.317]
[1724338927312,2.49265182,2606.1,2605.8,3.70062]